[Event "44th Chess Olympiad Women 2022"]
[Site "Chennai"]
[Date "2022.08.05"]
[Round "7.3"]
[White "Muzychuk, Mariya"]
[Black "Roebers, Eline"]
[Result "1/2-1/2"]
[WhiteElo "2540"]
[BlackElo "2344"]
[Annotator "TA"]
[PlyCount "158"]
[EventDate "2022.??.??"]
[TimeControl "60"]

{[%evp 25,158,10,20,0,-10,-4,18,28,16,34,21,19,21,14,26,0,6,0,14,8,295,308,294,
309,295,283,261,243,227,219,199,206,301,255,225,241,209,120,217,97,122,0,84,0,
0,-53,-53,-77,0,0,0,0,411,411,380,393,781,747,1100,0,0,0,0,0,0,0,0,0,0,0,326,
-152,-153,-153,-149,-155,-162,-12843,-12843,-12843,-12842,-12842,-12841,-12839,
-163,-162,-164,-172,-77,-168,-168,-12837,-12837,-12837,-12837,-12837,0,-12833,
0,0,0,0,0,0,0,0,0,0,0,0,0,0,0,0,0,0,0,0,0,0,0,0,0,0,0,0,0,0,0,0,0,0,0,-103,
-124]} 1. e4 {[%emt 0:00:08]} c5 {[%emt 0:00:13]} 2. c3 {[%emt 0:00:21]} Nf6 {
[%emt 0:00:09]} 3. e5 {[%emt 0:00:13]} Nd5 {[%emt 0:00:08]} 4. Nf3 {[%emt 0:00:
00]} d6 {[%emt 0:01:08]} 5. d4 {[%emt 0:00:16]} cxd4 {[%emt 0:01:02]} 6. cxd4 {
[%emt 0:00:29]} Nc6 {[%emt 0:00:58]} 7. Bc4 {[%emt 0:00:29]} Nb6 {[%emt 0:00:
00]} 8. Bb5 {[%emt 0:00:45]} dxe5 {[%emt 0:01:06]} 9. Nxe5 {[%emt 0:00:19]} Bd7
{[%emt 0:00:48]} 10. Nxd7 {[%emt 0:00:29]} Qxd7 {[%emt 0:00:20]} 11. Nc3 {
[%emt 0:00:36]} e6 {[%emt 0:00:55]} 12. O-O {[%emt 0:05:08]} Be7 {[%emt 0:00:
00] 12...Rd8 deserves study.} 13. Qg4 {[%emt 0:01:47]} O-O {[%emt 0:03:03]} 14.
Rd1 {[%emt 0:11:04][%cal Yd4d5] B22: Sicilian: 2 c3.} Rfd8 {[%emt 0:17:53] 14..
.f5 is not played anymore.} 15. Bh6 {[%emt 0:08:41][%csl Gh6][%cal Rg4g7]} Bf6
{[%emt 0:05:53]} 16. Ne4 {[%emt 0:04:17] The position is equal.} Qe7 {[%emt 0:
00:00]} 17. Bxc6 $40 {[%emt 0:07:46] White is up to no good.} bxc6 {[%emt 0:00:
12]} 18. Rac1 {[%emt 0:02:52][%cal Ya1c1,Yc1c3,Yc3g3]} Rac8 {[%emt 0:06:19]}
19. h4 {[%emt 0:01:53]} Rd5 $1 {[%emt 0:07:28]} 20. Bg5 {[%emt 0:06:00]} Nd7 {
[%emt 0:02:34]} 21. Rc3 {[%emt 0:06:16]} Kh8 {[%emt 0:00:00]} 22. Nxf6 {
[%emt 0:02:51] [#]} gxf6 $146 {[%emt 0:09:03]} (22... Nxf6 $11 23. Qf3 h6 24.
Bxf6 Qxf6) ({Predecessor:} 22... Nxf6 23. Qf3 h6 24. Bxf6 Qxf6 25. Qxf6 gxf6
26. Kf1 e5 27. Rdd3 exd4 28. Rc4 Rb8 {½-½ (34) Kupsys,A (2531)-Valeinis,J 
(2273) ICCF email 2005}) 23. Bh6 $18 {[%emt 0:06:20][%csl Gh6][%cal Rg4g7]} Rg8
{[%emt 0:00:28] [#] Prevents Qg7+.} 24. Qxg8+ {[%emt 0:00:39]} Kxg8 {[%emt 0:
00:04]} 25. Rg3+ {[%emt 0:00:03]} Rg5 {[%emt 0:00:05]} 26. hxg5 {[%emt 0:00:05]
} f5 {[%emt 0:00:11]} 27. Rc1 {[%emt 0:00:00]} Qd6 {[%emt 0:02:34]} 28. Rgc3 {
[%emt 0:00:13]} Nb8 {[%emt 0:01:22]} (28... f6 $142 29. Rxc6 Qxd4 30. Rxe6 Kf7)
29. Rc4 {[%emt 0:01:02]} f6 {[%emt 0:00:00]} 30. gxf6 {[%emt 0:02:06]} Kf7 {
[%emt 0:00:42]} 31. Bg7 {[%emt 0:06:26]} (31. g3 $18) 31... f4 {[%emt 0:07:07]}
(31... Nd7 $16 32. R1c3 (32. Rxc6 Qxd4 33. Rc7 Qd2 $16) 32... f4) 32. R1c3 {
[%emt 0:04:29]} (32. Bh6 $18) 32... Nd7 $16 {[%emt 0:04:29]} 33. Ra4 {[%emt 0:
05:05]} (33. Rxc6 $16 Qxd4 34. Rc7) 33... a5 {[%emt 0:02:48]} (33... e5 $11 {
remains equal.}) 34. Rxa5 {[%emt 0:06:27]} (34. Rac4 $1 $16) 34... Qxd4 $11 {
[%emt 0:00:09]} 35. Rxc6 {[%emt 0:04:44]} (35. g3 $11) 35... Ne5 $1 $15 {
[%emt 0:01:43]} 36. Rc1 {[%emt 0:01:06] Against Qd1+} Nd3 {[%emt 0:06:10]} ({
Better is} 36... f3 $1 $17 {[%cal Yd4g4] ( -> ...Qg4!)} 37. Rc7+ Kg6) 37. Rf1 {
[%emt 0:00:13]} e5 {[%emt 0:00:54]} 38. Rb5 {[%emt 0:00:00]} e4 $2 {[%emt 0:02:
15]} (38... Qe4 $11 39. f3 Qe3+ 40. Kh2 Qe2 41. Rb7+ Kg6) 39. Rb7+ $18 {
[%emt 0:00:15]} Kg6 {[%emt 0:00:06][%cal Yd3f2]} 40. Bh8 $1 {[%emt 0:00:29]
Rg7+ is the strong threat.} e3 $2 {[%emt 0:01:09]} (40... Kh6 41. Re7 Qc5 42.
Rxe4 Kg6) 41. Rg7+ {[%emt 0:08:56]} Kh6 {[%emt 0:00:00]} 42. f7 $2 {[%emt 0:02:
19]} (42. fxe3 $18 fxe3 43. Rd7 $3) 42... exf2+ $11 {[%emt 0:08:22]} 43. Kh2 {
[%emt 0:00:03]} Qc5 {[%emt 0:09:29][%cal Rc5h5]} 44. g4 {[%emt 0:05:10][%cal
Yg2g4,Yg4g5] Against Qh5+. Strongly threatening Rg8.} Qe7 {[%emt 0:11:54]} (
44... Qe3 $5 45. g5+ (45. f8=Q $2 Qg3+ 46. Kh1 Qh3#) 45... Kh5 46. Rxh7+ (46.
f8=Q $2 Qg3+ 47. Kh1 Qh3#) 46... Kg4 $11) 45. g5+ {[%emt 0:07:56]} Kh5 {
[%emt 0:00:03]} 46. Rxh7+ {[%emt 0:00:00]} Kg4 {[%emt 0:00:26]} 47. Bd4 {
[%emt 0:07:05]} Kf3 $2 {[%emt 0:02:18]} (47... Ne1 $1 $11 {and Black stays
safe.} 48. Rxf2 Nf3+ 49. Kg2 (49. Rxf3 $2 Kxf3 50. Rh3+ Ke4 $19) 49... Nxd4 50.
Rh4+ Kxh4 51. Rxf4+ Kxg5) 48. Rh3+ $2 {[%emt 0:02:02]} ({Only move:} 48. g6 $18
Ke2 49. g7 (49. Rh8 Qg5 $11) 49... Qxf7 50. Rh8 $1) 48... Ke2 $1 $17 {[%emt 0:
00:06]} 49. Rxd3 {[%emt 0:00:00]} ({Don't blunder} 49. g6 $2 Kxf1 50. g7 Qxf7
$1 $19) 49... Kxd3 {[%emt 0:00:00]} 50. Rxf2 {[%emt 0:01:04]} (50. Rd1+ Ke2 51.
f8=B Qxf8 52. Bxf2 Kxd1 53. Kh3 Ke2 54. Kg4 Kxf2 55. g6 Ke3 56. g7 Qxg7+ 57.
Kf5 f3 58. Ke6 f2 59. Kd6 f1=Q 60. Kc5 Qa6 61. Kb4 Qxb2+ 62. Kc5 Qd4#) 50...
Qxf7 {[%emt 0:00:08] Endgame KQ-KRB} 51. Bf6 {[%emt 0:00:36]} (51. Bc3) 51...
Qh5+ {[%emt 0:00:11]} 52. Kg2 {[%emt 0:00:29]} Qg4+ {[%emt 0:00:18]} 53. Kf1 {
[%emt 0:00:07]} Qh3+ {[%emt 0:00:46]} 54. Kg1 {[%emt 0:00:31]} f3 $2 {[%emt 0:
00:30]} (54... Qg3+ 55. Kf1 Qh3+ 56. Kg1 Qg4+ 57. Kf1 Qd1+ 58. Kg2 Ke3) 55. Bc3
$19 {[%emt 0:00:20]} Ke4 {[%emt 0:00:32] Black has strong compensation.} 56.
Bd2 {[%emt 0:00:34]} Qe6 {[%emt 0:00:28]} (56... Qg3+ $19 {is more deadly.} 57.
Kf1 Qd6) 57. a4 {[%emt 0:00:23] [#]} (57. b3 $17 {keeps fighting.}) 57... Qa2
$1 {[%emt 0:00:38][%csl Ya4,Yb2]} 58. a5 $2 {[%emt 0:00:08]} (58. Be1) 58...
Qa1+ {[%emt 0:01:01]} 59. Kh2 {[%emt 0:00:34]} Qxb2 {[%emt 0:00:09]} 60. Kg1 {
[%emt 0:00:43]} Qb8 $2 {[%emt 0:00:32]} (60... Qb1+ $19 61. Rf1 Qc2) 61. Kf1 $2
{[%emt 0:01:07]} (61. Be1 $11 Qb1 62. Kf1) 61... Qb1+ $2 {[%emt 0:00:00]} ({
Black should try} 61... Qb5+ $19 62. Kg1 Qb1+ 63. Rf1 Qc2) 62. Be1 $11 {
[%emt 0:00:02]} Qb5+ {[%emt 0:00:07]} 63. Kg1 {[%emt 0:00:03]} Qxg5+ {[%emt 0:
00:03]} 64. Kf1 {[%emt 0:00:03]} Qc1 {[%emt 0:00:50]} 65. Rh2 {[%emt 0:00:00]}
Qa1 {[%emt 0:01:40]} 66. Rf2 {[%emt 0:00:15]} Qh8 {[%emt 0:00:36][%cal Rh8h1]}
67. Kg1 {[%emt 0:00:06] Against Qh1+} Kf4 {[%emt 0:00:35]} 68. Rh2 {[%emt 0:00:
31]} Qg8+ {[%emt 0:00:25]} 69. Kf1 {[%emt 0:00:21]} Qc4+ {[%emt 0:00:00]} 70.
Kg1 {[%emt 0:00:14]} Ke3 {[%emt 0:00:27]} 71. Bd2+ {[%emt 0:00:23]} Kd3 {
[%emt 0:00:13]} 72. Be1 $1 {[%emt 0:00:18]} Qc7 {[%emt 0:00:52]} 73. Rf2 {
[%emt 0:00:21]} Qg3+ {[%emt 0:00:20]} 74. Kf1 {[%emt 0:00:11] Threatens to win
with Rd2+.} Qh3+ {[%emt 0:00:21]} 75. Kg1 {[%emt 0:00:04]} Ke4 {[%emt 0:00:16]}
76. Rh2 {[%emt 0:00:11]} Qg4+ {[%emt 0:00:26]} 77. Kf1 {[%emt 0:00:07] Hoping
for Rh4.} Kd3 {[%emt 0:00:27]} 78. Rf2 {[%emt 0:00:59]} Ke3 {[%emt 0:01:06]}
79. Bd2+ {[%emt 0:00:16] [#]} (79. a6 $1 $11 {keeps the balance.} Qc4+ 80. Kg1)
79... Ke4 $1 {[%emt 0:00:28] What a fight! Weighted Error Value: White=0.62/
Black=0.70} 1/2-1/2

[Event "44th Chess Olympiad Women 2022"]
[Site "Chennai"]
[Date "2022.08.05"]
[Round "7.3"]
[White "Peng, Zhaoqin"]
[Black "Muzychuk, Anna"]
[Result "0-1"]
[WhiteElo "2349"]
[BlackElo "2529"]
[Annotator "TA"]
[PlyCount "82"]
[EventDate "2022.??.??"]
[TimeControl "60"]

{[%evp 11,82,6,-7,-10,-3,-21,-10,-39,-32,-33,-34,-39,-29,-128,-142,-139,-132,
-248,-231,-239,-258,-309,-311,-266,-128,-122,-122,-127,-117,-125,-126,-122,
-122,-118,-114,-120,-121,-121,-116,-137,-129,-141,-135,-123,-130,-183,-191,
-162,-137,-270,-264,-276,-262,-267,-275,-275,-268,-373,-381,-381,-371,-710,
-671,-1157,-545,-1147,-1065,-1155,-977,-1052,-997,-851,-613]} 1. d4 {[%emt 0:
00:00]} Nf6 {[%emt 0:00:05]} 2. c4 {[%emt 0:00:08]} g6 {[%emt 0:00:05]} 3. Nc3
{[%emt 0:00:11]} d5 {[%emt 0:00:03]} 4. cxd5 {[%emt 0:01:49]} Nxd5 {[%emt 0:00:
00]} 5. Nf3 {[%emt 0:00:15]} Bg7 {[%emt 0:00:21]} 6. Bd2 {[%emt 0:01:38]} c5 {
[%emt 0:05:48]} 7. e4 {[%emt 0:01:59] 7.Nxd5 is a critical line. D90:
Grünfeld: 4 Nf3 Bg7 sidelines.} Nxc3 {[%emt 0:00:32]} 8. Bxc3 {[%emt 0:00:06]}
cxd4 {[%emt 0:07:22]} 9. Bb5+ {[%emt 0:14:21] The position is equal.} Bd7 $1 {
[%emt 0:03:30]} 10. Bxd7+ {[%emt 0:00:46]} Nxd7 {[%emt 0:02:59]} 11. Nxd4 {
[%emt 0:05:28]} Nc5 {[%emt 0:04:17] [#]} 12. f3 $146 {[%emt 0:18:31]} (12. Qc2
$11) ({Predecessor:} 12. Nb5) 12... O-O $17 {[%emt 0:11:58]} 13. Qd2 {[%emt 0:
00:00]} Qb6 {[%emt 0:04:57] And now ...Rfd8 would win.} 14. Rd1 {[%emt 0:03:50]
} (14. Qc2 $17 {was necessary.}) 14... Rfd8 $19 {[%emt 0:04:51]} 15. Qc2 {
[%emt 0:03:20]} Rac8 {[%emt 0:11:04]} 16. Ne2 {[%emt 0:01:08]} Rxd1+ {[%emt 0:
00:00]} 17. Kxd1 {[%emt 0:00:35][%cal Ye1d1,Yd1c1,Yc1b1,Yb1c2]} Rd8+ {[%emt 0:
16:00]} (17... Bh6 $19 18. Ke1 Rd8) 18. Kc1 $17 {[%emt 0:00:23]} Nd3+ {[%emt 0:
01:18]} 19. Kb1 {[%emt 0:00:14] [#]} Nxb2 $1 {[%emt 0:00:30] 0x0.
002362c415e5dp-1022s more active pieces.} 20. Qxb2 {[%emt 0:02:57]} Qxb2+ {
[%emt 0:00:09]} 21. Bxb2 {[%emt 0:02:32]} Bxb2 {[%emt 0:00:06] Endgame KRB-KRN}
22. Kc2 {[%emt 0:00:44] Prevents Rd2+.} Be5 {[%emt 0:00:26]} 23. Rb1 {[%emt 0:
00:31]} b6 {[%emt 0:00:45]} ({Of course not} 23... Bxh2 $6 24. g3 $11 (24. Rxb7
Rc8+ 25. Kd3 Rc7 $15)) 24. f4 {[%emt 0:00:43]} Bd6 {[%emt 0:00:00]} 25. e5 {
[%emt 0:02:00]} Bc5 {[%emt 0:00:58]} 26. Rb3 {[%emt 0:00:04]} f6 {[%emt 0:03:
22]} 27. exf6 {[%emt 0:00:19]} exf6 {[%emt 0:00:02]} 28. f5 {[%emt 0:00:56]} (
28. Rf3 $17) 28... Re8 $19 {[%emt 0:02:51]} 29. Ng3 {[%emt 0:00:00]} Bd6 {
[%emt 0:02:33]} 30. Rd3 {[%emt 0:00:45]} (30. fxg6 $17 hxg6 31. Rd3) 30... Bxg3
{[%emt 0:03:04]} 31. Rxg3 {[%emt 0:00:01] [#] KR-KR} Re2+ $1 {[%emt 0:00:32]}
32. Kb3 {[%emt 0:00:05]} g5 {[%emt 0:00:42]} 33. h4 {[%emt 0:00:00]} h6 {
[%emt 0:00:04]} 34. hxg5 {[%emt 0:00:45]} fxg5 {[%emt 0:02:20]} 35. a3 {
[%emt 0:00:32]} Kg7 {[%emt 0:01:00] Strongly threatening ...Kf6.} 36. Kb4 $2 {
[%emt 0:00:30]} (36. Kc4) 36... Kf6 {[%emt 0:00:30] White must now prevent ...
h5. Black is clearly winning.} 37. Kb5 {[%emt 0:00:35]} Re5+ {[%emt 0:00:14]} (
37... h5 $142 38. Rh3 h4) 38. Ka6 {[%emt 0:00:33]} Ra5+ {[%emt 0:00:12]} 39.
Kb7 {[%emt 0:00:03]} Kxf5 {[%emt 0:00:09]} 40. Rh3 {[%emt 0:00:45]} h5 {
[%emt 0:00:20]} 41. Rf3+ {[%emt 0:30:46]} Ke5 {[%emt 0:22:17] Weighted Error
Value: White=0.62/Black=0.22 (precise)} 0-1

[Event "44th Chess Olympiad Women 2022"]
[Site "Chennai"]
[Date "2022.08.05"]
[Round "7.3"]
[White "Ushenina, Anna"]
[Black "Ratsma, Rosa"]
[Result "1-0"]
[WhiteElo "2423"]
[BlackElo "2226"]
[Annotator "TA"]
[PlyCount "85"]
[EventDate "2022.??.??"]
[TimeControl "60"]

{[%evp 18,85,6,3,12,-56,-44,-53,-50,-49,-54,-177,-25,-31,-18,-16,-23,-41,247,
237,236,227,248,196,251,233,372,356,364,392,498,381,366,290,279,288,274,279,
241,90,125,144,139,136,213,191,308,302,288,266,421,427,415,393,647,638,757,757,
750,750,750,749,728,727,718,704,710,683,928,843]} 1. d4 {[%emt 0:00:06]} Nf6 {
[%emt 0:00:11]} 2. c4 {[%emt 0:00:14]} e6 {[%emt 0:00:09]} 3. Nc3 {[%emt 0:00:
00]} Bb4 {[%emt 0:00:12]} 4. e3 {[%emt 0:00:48]} O-O {[%emt 0:00:18]} 5. Bd3 {
[%emt 0:00:24]} c5 {[%emt 0:00:32]} 6. Nge2 {[%emt 0:01:33]} d5 {[%emt 0:00:25]
} 7. cxd5 {[%emt 0:11:33]} cxd4 {[%emt 0:00:48]} 8. exd4 {[%emt 0:01:05]} Nxd5
{[%emt 0:03:39]} 9. O-O {[%emt 0:01:09]} Nc6 {[%emt 0:04:08]} 10. Bc2 {[%emt 0:
00:00]} Be7 {[%emt 0:11:26] E48: Nimzo-Indian: Rubinstein: 5 Bd3 d5 including
6 Ne2, but excluding 6 a3.} 11. Ne4 {[%emt 0:10:41]} (11. Re1 $11) 11... b6 $15
{[%emt 0:06:59]} 12. a3 {[%emt 0:03:08]} Ba6 {[%emt 0:14:53] Against Qd3.
Black is slightly better.} 13. Re1 {[%emt 0:00:49][%cal Yf1e1,Ye1e3,Ye3g3]} Rc8
{[%emt 0:01:35]} 14. N2c3 {[%emt 0:10:47] [#]} (14. Bd3 $15 Bb7 15. N4c3) 14...
Nxc3 $146 {[%emt 0:04:00]} ({Black should try} 14... Nxd4 $1 $19 15. Bb1 (15.
Qxd4 $2 Nxc3 16. Qxd8 Ne2+ 17. Rxe2 Rfxd8 $19) (15. Ba4 Rc4) 15... Nxc3 16.
Nxc3 {[#]} Ne2+ $1 17. Nxe2 Qxd1 18. Rxd1 Bxe2) ({Predecessor:} 14... g6 15.
Bh6 Re8 16. Ba4 Bb7 17. Qd2 a6 18. Bg5 Nxc3 19. bxc3 b5 20. Bc2 Bxg5 21. Nxg5 {
0-1 (31) Florea,D (1965)-Bach,E (2330) Badenweiler 1995}) 15. bxc3 $11 {
[%emt 0:00:12]} Qd5 {[%emt 0:01:52]} 16. Re3 {[%emt 0:10:26]} f5 {[%emt 0:06:
32]} 17. Nd2 {[%emt 0:11:10]} Nxd4 {[%emt 0:00:00]} 18. cxd4 $18 {[%emt 0:00:
41]} Qxd4 {[%emt 0:00:08]} 19. Rb1 {[%emt 0:04:14] Black must now prevent Bb3.}
Bg5 {[%emt 0:01:51]} 20. Bb2 {[%emt 0:05:02]} (20. Rxe6 h6 21. g3 Qd7) 20...
Qd8 {[%emt 0:08:31]} (20... Qg4 {was necessary.}) 21. Rg3 {[%emt 0:13:20][%cal
Yc2b3]} Rf7 {[%emt 0:06:50] [#]} (21... Rc7 {keeps fighting.}) 22. Bb3 $1 {
[%emt 0:00:24][%cal Yb3e6]} Qxd2 {[%emt 0:01:34]} (22... Qe7 23. Rxg5) 23. Bxe6
{[%emt 0:01:20] Threatens to win with Qxd2.} Qxd1+ {[%emt 0:06:30]} 24. Rxd1 {
[%emt 0:00:01]} Bh6 {[%emt 0:00:00]} 25. Rd7 {[%emt 0:00:53] Pin} Bc4 {[%emt 0:
01:14]} 26. Rc3 {[%emt 0:00:22]} (26. Bxf7+ $6 Bxf7 27. Rgd3 (27. Rxa7 Re8 $18)
27... Re8 $18) 26... Re8 {[%emt 0:00:31]} 27. Bxf7+ {[%emt 0:00:34]} (27. Rxc4
Rxe6 28. Rc8+ Rf8 29. Rxf8+ Kxf8 $15) 27... Bxf7 {[%emt 0:00:06][%cal Re8e1]}
28. Kf1 {[%emt 0:00:41] Against Re1+} (28. h4 $18 {and White stays clearly on
top.}) 28... b5 {[%emt 0:00:38]} 29. g3 {[%emt 0:00:33]} ({Much worse is} 29.
Rxa7 $6 Bd2 30. f4 g6 $11) 29... Bc4+ {[%emt 0:00:23]} 30. Kg2 {[%emt 0:00:08]}
Re2 {[%emt 0:00:31]} (30... a6 $16 {is a better defense.} 31. Bc1 g5) 31. Bc1 {
[%emt 0:00:22]} Bxc1 {[%emt 0:00:27]} (31... g5 $142 32. h4 (32. Rxa7 Bf8 $16)
32... Bg7) 32. Rxc1 {[%emt 0:00:01] Endgame KRR-KRB} a5 {[%emt 0:00:00]} 33. a4
{[%emt 0:00:21] axb5 is the strong threat.} Re8 {[%emt 0:00:37]} (33... h6 {
might work better.} 34. axb5 Bxb5) 34. axb5 {[%emt 0:00:42]} Bxb5 {[%emt 0:00:
02]} 35. Ra7 {[%emt 0:01:04] Strongly threatening Rcc7.} ({Don't take} 35. Rd5
Be2 36. Rxf5 a4 $18) 35... a4 $2 {[%emt 0:00:55]} (35... Kh8 36. Rcc7 Rg8 37.
Rxa5 Bd3) 36. Rcc7 {[%emt 0:00:28] White is clearly winning.} g5 {[%emt 0:00:
33]} 37. Rg7+ {[%emt 0:00:07]} Kh8 {[%emt 0:00:07]} 38. Rxh7+ {[%emt 0:00:09]}
Kg8 {[%emt 0:00:06]} 39. Rhg7+ {[%emt 0:00:24]} Kh8 {[%emt 0:00:00]} 40. Rxg5 {
[%emt 0:01:15]} Bc6+ {[%emt 0:00:29]} 41. Kh3 {[%emt 0:01:43]} Rf8 {[%emt 0:07:
23]} 42. Kh4 {[%emt 0:06:54]} f4 {[%emt 0:01:50]} 43. Ra6 {[%emt 0:02:05]
Weighted Error Value: White=0.16 (very precise) /Black=0.58} 1-0